bitfinex-derivatives/quotes_SOLF0:USTF0_20241230
["timestamp","ask_amount","ask_price","bid_price","bid_amount"]
[1735575912440,22.80190734,187.58,187.53,3.24]
[1735575913240,22.80190734,187.58,187.56,2.671]
[1735575913644,14.91728,187.58,187.56,2.671]
[1735575914139,14.91728,187.58,187.53,3.24]
[1735575914341,22.80190734,187.58,187.5,7.88462734]
[1735575914638,22.80190734,187.58,187.52,7.88462734]
[1735575914843,22.80190734,187.58,187.54,2.6711]
[1735575915244,14.91728,187.58,187.56,2.6709]
[1735575915439,14.91728,187.58,187.54,7.88462734]
[1735575915844,14.91728,187.58,187.55,2.6711]
[1735575916044,14.91728,187.58,187.54,7.88462734]
[1735575916546,14.91728,187.58,187.57,2.6708]
[1735575918549,14.91728,187.58,187.57,10.55542734]
[1735575918842,3.29328,187.58,187.57,10.55542734]
[1735575925452,3.29328,187.58,187.57,2.6708]
[1735575925652,3.29328,187.58,187.57,10.55542734]
[1735575929058,3.29328,187.58,187.57,2.6708]
[1735575935066,3.29328,187.58,187.57,5.8908]
[1735575935966,3.29328,187.58,187.57,2.6708]
[1735575936371,3.29328,187.58,187.56,2.6709]
[1735575937465,3.29328,187.58,187.57,2.6708]
[1735575938073,3.29328,187.58,187.53,7.88462734]
[1735575938269,3.29328,187.58,187.51,7.88462734]
[1735575938576,59.00650304,187.75,187.57,7.88462734]
[1735575938871,7.88462734,187.72,187.67,7.88462734]
[1735575939077,12.49982734,187.74,187.68,2.6691]
[1735575939281,59.00650304,187.72,187.68,2.6691]
[1735575940480,12.49982734,187.74,187.68,2.6691]
[1735575940974,7.88462734,187.72,187.67,2.6694]
[1735575941173,7.88462734,187.72,187.65,11.10462734]
[1735575942276,4.6152,187.74,187.69,7.88462734]
[1735575942574,1.5492,187.74,187.69,7.88462734]
[1735575942780,1.5492,187.74,187.71,2.6688]
[1735575943171,1.5492,187.74,187.69,7.88462734]
[1735575943377,1.5492,187.74,187.65,3.22]
[1735575943577,1.5492,187.74,187.68,7.88462734]
[1735575944477,1.5492,187.74,187.69,2.669]
[1735575945975,1.5492,187.74,187.7,2.6689]
[1735575949383,1.5492,187.74,187.68,7.88462734]
[1735575950078,7.88462734,187.77,187.73,2.6684]
[1735575950484,3.18,187.78,187.74,7.88462734]
[1735575950685,7.88462734,187.82,187.79,2.6677]
[1735575951189,3.0881,187.86,187.79,2.6677]
[1735575951490,7.88462734,187.82,187.79,2.6677]
[1735575952386,7.88462734,187.8,187.74,11.10462734]
[1735575952582,7.88462734,187.78,187.74,3.22]
[1735575952883,7.88462734,187.8,187.76,2.668]
[1735575953079,7.88462734,187.8,187.74,3.22]
[1735575953278,7.88462734,187.8,187.74,11.10462734]
[1735575953485,7.88462734,187.82,187.74,11.10462734]
[1735575954483,7.88462734,187.82,187.78,2.6677]
[1735575956987,7.88462734,187.82,187.79,2.6677]
[1735575961394,7.88462734,187.82,187.76,7.88462734]
[1735575961395,7.88462734,187.82,187.8,2.6675]
[1735575961987,3.0881,187.86,187.78,7.88462734]
[1735575962191,7.88462734,187.85,187.8,7.88462734]
[1735575962691,3.0881,187.86,187.8,7.88462734]
[1735575962887,3.0881,187.86,187.8,11.10462734]
[1735575963394,7.88462734,187.89,187.82,7.88462734]
[1735575963595,98.38315308,187.91,187.84,7.88462734]
[1735575963801,7.88462734,187.91,187.84,7.88462734]
[1735575963987,7.88462734,187.91,187.86,2.6666]
[1735575964386,7.88462734,187.91,187.84,7.88462734]
[1735575964595,7.88462734,187.94,187.88,7.88462734]
[1735575964994,7.88462734,187.94,187.9,2.6661]
[1735575965498,7.88462734,187.94,187.88,7.88462734]
[1735575965691,7.88462734,187.94,187.89,2.6662]
[1735575966298,3.2,187.98,187.9,2.666]
[1735575966592,7.88462734,187.95,187.9,2.666]
[1735575966991,7.88462734,187.97,187.92,2.6658]
[1735575969097,7.88462734,187.97,187.93,2.6657]
[1735575969296,3.2,187.99,187.9,7.88462734]
[1735575969494,7.88462734,187.97,187.9,7.88462734]
[1735575969897,7.88462734,187.99,187.92,7.88462734]
[1735575970195,7.88462734,187.99,187.92,11.08462734]
[1735575970501,7.88462734,188.01,187.94,7.88462734]
[1735575970702,4.6399,188.02,187.92,3.2]
[1735575970703,3.1575,188.02,187.96,7.88462734]
[1735575971233,3.1575,188.02,187.98,2.665]
[1735575971716,3.1575,188.02,187.96,11.08462734]
[1735575972567,1.5547,188.02,187.96,11.08462734]
[1735575972929,1.4887,188.06,187.98,7.88462734]
[1735575972930,7.88462734,188.05,187.98,7.88462734]
[1735575973125,1.4887,188.06,187.99,2.6648]
[1735575973425,7.88462734,188.05,187.99,2.6648]
[1735575974350,1.4887,188.06,187.99,2.6648]
[1735575978716,1.4887,188.06,188.0,2.6647]
[1735575978918,1.4887,188.06,187.98,3.2]
[1735575980306,1.4887,188.06,188.0,2.6647]
[1735575980504,3.1428,188.07,187.98,15.45077791]
[1735575980721,3.1428,188.07,188.01,2.6644]
[1735575980906,12.25077791,188.11,187.98,15.45077791]
[1735575980907,15.45077791,188.11,187.98,15.45077791]
[1735575981106,12.25077791,188.11,187.98,15.45077791]
[1735575981301,3.0779,188.13,188.04,2.664]
[1735575981609,3.0779,188.13,188.04,3.2]
[1735575982311,3.0779,188.13,188.04,15.45077791]
[1735575982513,1.5681,188.13,188.04,15.45077791]
[1735575982711,12.25077791,188.18,188.08,2.6635]
[1735575983308,12.25077791,188.15,188.02,1.6182]
[1735575983503,12.25077791,188.15,188.03,3.2]
[1735575983504,3.2,188.14,188.03,3.2]
[1735575985110,3.2,188.14,187.98,1.5868]
[1735575985111,12.25077791,188.09,187.98,1.5868]
[1735575985311,12.25077791,188.06,187.97,4.7652]
[1735575985699,12.25077791,188.06,187.95,3.2]
[1735575986308,12.25077791,188.06,187.98,2.6649]
[1735575991113,12.25077791,188.03,187.91,1.5714]
[1735575991319,3.2,188.02,187.89,13.82647791]
[1735575991515,12.25077791,188.0,187.89,13.82647791]
[1735575991708,1.6214,187.99,187.89,16.49267791]
[1735575991904,1.6214,187.99,187.89,12.25077791]
[1735575992101,4.671,187.99,187.89,12.25077791]
[1735575992605,4.671,187.99,187.88,40.35838286]
[1735575992814,4.671,187.99,187.88,34.62911592]
[1735575992815,12.25077791,187.97,187.88,34.62911592]
[1735575993110,3.2,187.96,187.86,12.25077791]
[1735575993308,3.2,187.96,187.85,1.5846]
[1735575993511,3.2,187.96,187.85,4.2514]
[1735575993811,3.2,187.96,187.83,12.25077791]
[1735575994007,3.2,187.96,187.84,2.667]
[1735575994209,12.25077791,187.94,187.84,2.667]
[1735575994810,3.2,187.96,187.84,2.667]
[1735575995008,12.25077791,187.95,187.84,2.667]
[1735575995215,12.25077791,187.95,187.83,12.25077791]
[1735575996011,12.25077791,187.95,187.83,14.91787791]
[1735575996211,12.25077791,187.95,187.83,12.25077791]
[1735575996612,12.25077791,187.95,187.82,2.6673]
[1735575997014,12.25077791,187.95,187.81,1.5978]
[1735575997307,12.25077791,187.92,187.8,12.25077791]
[1735575997614,4.7502,187.91,187.8,12.25077791]
[1735575998010,1.573,187.9,187.8,12.25077791]
[1735575998919,1.573,187.9,187.8,14.91827791]
[1735576000016,1.573,187.9,187.83,2.6671]
[1735576000213,4.793,187.9,187.8,12.25077791]
[1735576000818,4.793,187.9,187.81,2.6674]
[1735576001416,4.793,187.9,187.8,12.25077791]
[1735576001712,4.793,187.9,187.81,2.6674]
[1735576002916,4.793,187.9,187.8,12.25077791]
[1735576005316,4.793,187.9,187.79,2.6676]
[1735576005918,4.793,187.9,187.8,2.6675]
[1735576006516,4.793,187.9,187.77,18.53528228]
[1735576006720,4.793,187.9,187.82,2.6672]
[1735576006922,4.793,187.9,187.8,12.25077791]
[1735576007322,4.793,187.9,187.83,2.6671]
[1735576007525,6.3294,187.91,187.83,2.6671]
[1735576007718,6.3294,187.91,187.8,12.25077791]
[1735576007919,3.22,187.93,187.83,12.25077791]
[1735576009320,3.22,187.93,187.8,12.25077791]
[1735576009520,1.5281,187.92,187.8,12.25077791]
[1735576009816,1.5281,187.92,187.82,2.6672]
[1735576010425,1.5281,187.92,187.83,12.25077791]
[1735576011023,1.5281,187.92,187.84,2.6669]
[1735576011525,1.5281,187.92,187.83,12.25077791]
[1735576011731,13.81787791,187.98,187.86,12.25077791]
[1735576012126,3.22,187.97,187.86,12.25077791]
[1735576012526,3.22,187.97,187.91,7.84670339]
[1735576013532,3.22,187.97,187.93,7.84670339]
[1735576013727,7.84670339,188.0,187.93,7.84670339]
[1735576014326,7.84670339,188.0,187.93,10.51240339]
[1735576014629,7.84670339,188.0,187.88,3.22]
[1735576014630,5.202132,188.01,187.9,12.25840589]
[1735576014931,5.202132,188.01,187.92,2.6658]
[1735576014932,3.22,188.0,187.92,2.6658]
[1735576015934,15.47840589,188.02,187.9,12.25840589]
[1735576017036,15.47840589,188.02,187.92,2.6658]
[1735576017833,15.47840589,188.02,187.9,14.92450589]
[1735576018635,15.47840589,188.02,187.91,2.6659]
[1735576019233,15.47840589,188.02,187.89,2.6662]
[1735576019432,12.25840589,187.99,187.87,12.25840589]
[1735576020129,12.25840589,187.99,187.9,2.6661]
[1735576020437,12.25840589,187.99,187.87,12.25840589]
[1735576020633,12.25840589,187.99,187.89,2.6662]
[1735576021033,12.25840589,187.99,187.9,2.666]
[1735576021240,3.1702,188.01,187.9,12.25840589]
[1735576021536,3.22,188.0,187.9,12.25840589]
[1735576021730,3.22,188.0,187.92,2.6658]
[1735576022339,12.25840589,187.99,187.9,2.666]
[1735576023839,12.25840589,187.99,187.87,12.25840589]
[1735576024236,1.5022,187.98,187.85,3.18]
[1735576024735,1.5022,187.98,187.87,2.6666]
[1735576025331,1.5022,187.98,187.84,16.98130589]
[1735576025532,12.25840589,187.96,187.84,15.38700589]
[1735576025737,3.18,187.95,187.84,3.1286]
[1735576027438,3.18,187.95,187.86,2.6666]
[1735576027738,3.18,187.95,187.84,3.1286]
[1735576027940,1.5273,187.94,187.84,3.1286]
[1735576028139,12.25840589,187.93,187.84,1.518]
[1735576028437,12.25840589,187.93,187.81,12.25840589]
[1735576028639,1.5082,187.92,187.81,12.25840589]
[1735576029530,1.5082,187.92,187.83,2.6671]
[1735576029734,1.5082,187.92,187.79,1.63]
[1735576030131,1.5082,187.92,187.83,2.6671]
[1735576030336,1.5082,187.92,187.79,1.63]
[1735576030832,1.5082,187.92,187.82,2.6672]
[1735576031741,1.5082,187.92,187.8,2.6675]
[1735576032238,1.5082,187.92,187.79,1.63]
[1735576032441,1.5082,187.92,187.81,2.6673]
[1735576034439,3.18,187.91,187.83,2.6671]
[1735576034641,3.18,187.91,187.81,12.25840589]
[1735576035337,3.18,187.91,187.79,1.63]
[1735576035744,3.18,187.91,187.8,2.6675]
[1735576036443,7.85546064,187.88,187.8,7.85546064]
[1735576037239,7.85546064,187.88,187.78,5.8348]
[1735576037240,7.85546064,187.84,187.77,3.06450437]
[1735576037440,11.03546064,187.84,187.77,3.06450437]
[1735576038450,11.03546064,187.84,187.76,7.85546064]
[1735576039050,3.18,187.84,187.78,7.85546064]
[1735576039641,3.18,187.84,187.78,10.52326064]
[1735576040150,3.18,187.84,187.78,7.85546064]
[1735576040450,11.03546064,187.84,187.78,7.85546064]
[1735576041644,11.03546064,187.84,187.76,7.85546064]
[1735576043253,11.03546064,187.84,187.78,7.85546064]
[1735576043254,3.18,187.84,187.78,7.85546064]
[1735576044252,7.85546064,187.87,187.78,7.85546064]
[1735576044452,3.18,187.86,187.78,7.85546064]
[1735576045056,3.18,187.86,187.78,10.52326064]
[1735576050059,7.85546064,187.85,187.78,10.52326064]
[1735576050261,7.85546064,187.85,187.78,7.85546064]
[1735576050656,7.85546064,187.85,187.76,7.85546064]
[1735576051567,7.85546064,187.83,187.76,7.85546064]
[1735576051962,1.4948,187.9,187.76,7.85546064]
[1735576051963,1.4948,187.9,187.76,10.52346064]
[1735576052265,7.85546064,187.84,187.76,10.52346064]
[1735576053960,7.85546064,187.84,187.77,2.668]
[1735576054268,7.85546064,187.84,187.78,7.85546064]
[1735576054570,7.85546064,187.86,187.78,10.52326064]
[1735576055156,7.85546064,187.84,187.78,7.85546064]
[1735576055362,7.85546064,187.84,187.76,10.52356064]
[1735576056169,7.85546064,187.84,187.77,2.6679]
[1735576057970,7.85546064,187.84,187.78,7.85546064]
[1735576058174,1.5082,187.92,187.83,2.6671]
[1735576058472,7.85546064,187.92,187.84,7.85546064]
[1735576058963,3.14,187.93,187.86,7.85546064]
[1735576059162,10.99546064,187.93,187.86,7.85546064]
[1735576059568,10.99546064,187.93,187.87,2.6665]
[1735576060064,10.99546064,187.93,187.82,1.5763]
[1735576060260,7.85546064,187.91,187.84,7.85546064]
[1735576060869,7.85546064,187.91,187.84,10.52236064]
[1735576061178,7.85546064,187.91,187.84,7.85546064]
[1735576061575,7.85546064,187.89,187.81,3.0355]
[1735576061871,7.85546064,187.85,187.77,3.14]
[1735576062078,7.85546064,187.83,187.77,3.14]
[1735576062370,7.85546064,187.81,187.75,3.1208]
[1735576062572,7.85546064,187.81,187.75,5.7891]
[1735576062764,7.85546064,187.83,187.76,7.85546064]
[1735576063268,7.85546064,187.83,187.76,10.52356064]
[1735576063470,3.0287,187.85,187.76,7.85546064]
[1735576063671,7.85546064,187.83,187.76,7.85546064]
[1735576064071,7.85546064,187.83,187.76,10.52356064]
[1735576064868,7.85546064,187.83,187.76,7.85546064]
[1735576066265,3.14,187.84,187.78,2.6677]
[1735576066468,10.99546064,187.86,187.78,7.85546064]
[1735576066772,7.85546064,187.86,187.78,7.85546064]
[1735576066974,7.85546064,187.86,187.79,2.6676]
[1735576069380,7.85546064,187.86,187.81,2.6674]
[1735576069876,7.85546064,187.86,187.8,7.85546064]
[1735576070077,7.85546064,187.86,187.8,10.52296064]
[1735576070680,7.85546064,187.86,187.79,2.6676]
[1735576070876,7.85546064,187.84,187.78,7.85546064]
[1735576071082,7.85546064,187.82,187.75,10.97626064]
[1735576072581,7.85546064,187.82,187.76,2.6681]
[1735576072974,3.14,187.84,187.77,10.52326064]
[1735576073180,10.99546064,187.84,187.77,10.52326064]
[1735576074783,10.99546064,187.84,187.77,7.85546064]
[1735576076085,7.85546064,187.82,187.75,13.64446064]
[1735576076289,7.85546064,187.82,187.75,10.52366064]
[1735576080385,7.85546064,187.8,187.73,3.06542981]
[1735576080685,7.85546064,187.78,187.72,7.85546064]
[1735576081379,7.85546064,187.8,187.72,7.85546064]
[1735576082088,7.85546064,187.8,187.73,2.6685]
[1735576083288,10.99546064,187.82,187.76,7.85546064]
[1735576084188,10.99546064,187.82,187.76,10.52356064]
[1735576084383,7.85546064,187.8,187.72,7.85546064]
[1735576084684,210.04,188.0,187.69,3.14]
[1735576084685,8.25634689,187.89,187.78,7.85546064]
[1735576084984,7.85546064,187.9,187.83,7.85546064]
[1735576085679,2.6664,187.88,187.83,7.85546064]
[1735576086085,2.6666,187.87,187.84,2.667]
[1735576086386,2.6666,187.87,187.83,7.85546064]
[1735576086888,2.667,187.84,187.8,2.6675]
[1735576087087,7.85546064,187.86,187.79,7.85546064]
[1735576087587,2.667,187.84,187.8,2.6675]
[1735576094191,2.6669,187.85,187.81,2.6673]
[1735576095191,2.6663,187.89,187.83,7.85546064]
[1735576095396,11.01546064,187.9,187.83,7.85546064]
[1735576095596,11.01546064,187.9,187.84,2.6669]
[1735576095799,7.85546064,187.86,187.69,5.338]
[1735576095988,7.85546064,187.84,187.72,6.106]
[1735576096191,2.6677,187.8,187.76,10.52356064]
[1735576096395,7.85546064,187.8,187.74,7.85546064]
[1735576096697,7.85546064,187.8,187.72,7.85546064]
[1735576096896,7.85546064,187.76,187.7,7.85546064]
[1735576097194,7.85546064,187.76,187.68,7.85546064]
[1735576097599,7.85546064,187.72,187.64,7.85546064]
[1735576097801,7.85546064,187.72,187.66,7.85546064]
[1735576098001,2.6687,187.72,187.67,2.6693]
[1735576099003,2.6685,187.73,187.64,12.29173813]
[1735576099210,1.5604,187.76,187.7,2.6688]
[1735576099406,3.16,187.77,187.67,12.29173813]
[1735576100202,3.16,187.77,187.7,12.29173813]
[1735576100403,3.16,187.77,187.73,2.6685]
[1735576100612,3.16,187.81,187.73,2.6685]
[1735576101405,2.668,187.77,187.72,2.6687]
[1735576101712,3.16,187.81,187.69,3.16]
[1735576101911,2.6679,187.78,187.7,2.6688]
[1735576102112,3.16,187.81,187.7,2.6688]
[1735576102812,3.16,187.81,187.69,3.16]
[1735576103407,3.16,187.81,187.7,2.669]
[1735576103608,2.6683,187.75,187.7,2.669]
[1735576104008,3.16,187.81,187.69,3.16]
[1735576104603,2.6685,187.74,187.69,3.16]
[1735576105009,3.16,187.76,187.67,2.6693]
[1735576105311,3.16,187.75,187.63,3.0802]
[1735576105509,12.29173813,187.74,187.63,3.0802]
[1735576105716,2.6694,187.68,187.63,5.7502]
[1735576106011,12.29173813,187.74,187.63,3.0802]
[1735576106412,2.6691,187.69,187.64,2.6697]
[1735576107314,12.29173813,187.74,187.63,3.0802]
[1735576107515,2.6694,187.67,187.63,3.0802]
[1735576108110,3.16,187.75,187.63,3.0802]
[1735576108310,2.6691,187.69,187.63,3.0802]
[1735576108615,15.45173813,187.75,187.63,3.0802]
[1735576108816,2.6688,187.72,187.64,2.6698]
[1735576109012,15.45173813,187.75,187.64,2.6698]
[1735576109206,15.45173813,187.75,187.63,3.0802]
[1735576110011,2.6692,187.69,187.65,2.6697]
[1735576110815,2.6692,187.69,187.64,2.6698]
[1735576111016,2.6693,187.68,187.64,2.6698]
[1735576111618,2.6694,187.67,187.64,2.6698]
[1735576112818,12.29173813,187.72,187.63,3.0802]
[1735576113413,2.6697,187.65,187.63,3.0802]
[1735576113618,2.6697,187.65,187.62,3.06702499]
[1735576113820,3.16,187.69,187.62,3.06702499]
[1735576114014,2.6695,187.67,187.63,2.6699]
[1735576114209,12.29173813,187.72,187.62,3.06702499]
[1735576114408,3.14,187.71,187.62,3.06702499]
[1735576115430,3.14,187.71,187.64,2.6697]
[1735576115431,2.6693,187.68,187.64,2.6697]
[1735576118215,3.14,187.71,187.62,3.06702499]
[1735576118715,2.6697,187.65,187.62,5.73712499]
[1735576119810,2.6697,187.65,187.62,3.06702499]
[1735576120720,2.67,187.63,187.62,3.06702499]
[1735576120923,2.67,187.63,187.6,2.6704]
[1735576121515,7.87126395,187.66,187.59,7.87126395]
[1735576121716,2.6702,187.62,187.59,10.54176395]
[1735576121916,2.6702,187.62,187.59,7.87126395]
[1735576122419,2.6702,187.62,187.59,10.54176395]
[1735576122915,11.01126395,187.66,187.59,7.87126395]
[1735576123118,2.67,187.63,187.6,2.6704]
[1735576123625,2.6697,187.65,187.62,2.6701]
[1735576124223,2.6698,187.64,187.61,2.6702]
[1735576126219,2.6701,187.63,187.6,2.6704]
[1735576127025,11.01126395,187.66,187.6,2.6704]
[1735576127228,3.14,187.66,187.62,2.6701]
[1735576127923,2.6698,187.65,187.62,2.6701]
[1735576134432,10.54076395,187.67,187.63,2.6699]
[1735576134731,2.6695,187.67,187.63,2.6699]
[1735576134937,2.6693,187.68,187.65,2.6697]
[1735576135137,7.87126395,187.71,187.63,7.87126395]
[1735576135329,11.03126395,187.71,187.63,7.87126395]
[1735576136236,2.6691,187.69,187.66,2.6694]
[1735576136831,10.54016395,187.71,187.68,2.6693]
[1735576137032,3.16,187.73,187.65,7.87126395]
[1735576137242,7.87126395,187.72,187.65,7.87126395]
[1735576138038,2.669,187.7,187.67,2.6694]
[1735576138947,7.87126395,187.72,187.65,7.87126395]
[1735576139132,10.54006395,187.72,187.65,7.87126395]
[1735576139332,7.87126395,187.74,187.67,7.87126395]
[1735576139535,7.87126395,187.74,187.7,2.6689]
[1735576140137,7.87126395,187.72,187.69,2.6691]
[1735576140434,10.54006395,187.72,187.69,2.6691]
[1735576141337,7.87126395,187.72,187.65,7.87126395]
[1735576141639,7.87126395,187.7,187.63,7.87126395]
[1735576142437,7.87126395,187.7,187.68,2.6693]
[1735576142750,2.6689,187.71,187.68,2.6693]
[1735576143136,10.54006395,187.72,187.65,7.87126395]
[1735576143340,10.54006395,187.72,187.69,2.6691]
[1735576144837,7.87126395,187.72,187.67,2.6693]
[1735576145037,7.87126395,187.72,187.6,3.16]
[1735576145038,7.87126395,187.7,187.63,7.87126395]
[1735576145339,2.6694,187.68,187.64,2.6697]
[1735576145741,2.6694,187.68,187.63,7.87126395]
[1735576145940,2.6694,187.68,187.65,2.6696]
[1735576146837,7.87126395,187.7,187.63,7.87126395]
[1735576147030,7.87126395,187.72,187.65,7.87126395]
[1735576147639,7.87126395,187.72,187.69,2.6691]
[1735576147838,7.87126395,187.72,187.65,7.87126395]
[1735576148043,11.01126395,187.74,187.67,7.87126395]
[1735576148243,2.6686,187.73,187.67,7.87126395]
[1735576149241,2.6686,187.73,187.7,2.6689]
[1735576151338,7.87126395,187.74,187.67,7.87126395]
[1735576151546,10.53966395,187.74,187.67,7.87126395]
[1735576152042,2.6686,187.73,187.7,2.6689]
[1735576154548,7.87126395,187.74,187.67,7.87126395]
[1735576154846,2.6688,187.72,187.69,2.669]
[1735576155540,7.87126395,187.74,187.67,7.87126395]
[1735576155744,2.6691,187.7,187.62,3.14]
[1735576155944,7.87126395,187.72,187.65,7.87126395]
[1735576156345,7.87126395,187.72,187.69,2.6691]
[1735576156545,61.00865331,187.76,187.69,2.6691]
[1735576156546,7.87126395,187.74,187.69,2.6691]
[1735576156843,10.53996395,187.72,187.69,2.6691]
[1735576157156,7.87126395,187.72,187.68,2.6692]
[1735576157850,2.669,187.71,187.68,2.6692]
[1735576158154,7.87126395,187.74,187.67,7.87126395]
[1735576158342,10.53966395,187.74,187.67,7.87126395]
[1735576158652,10.53966395,187.74,187.7,2.6689]
[1735576158852,1.5564,187.73,187.7,2.6689]
[1735576159249,1.5564,187.73,187.67,7.87126395]
[1735576159552,1.5564,187.73,187.71,2.6688]
[1735576165866,1.5564,187.73,187.67,7.87126395]
[1735576166055,1.5564,187.73,187.64,3.14]
[1735576166262,7.87126395,187.72,187.66,7.87126395]
[1735576166870,2.6689,187.71,187.68,2.6692]
[1735576167062,7.87126395,187.72,187.64,11.01126395]
[1735576167265,7.87126395,187.7,187.64,11.01126395]
[1735576167769,7.87126395,187.7,187.62,7.87126395]
[1735576167972,11.01126395,187.72,187.64,7.87126395]
[1735576168266,13.67996395,187.72,187.69,2.6691]
[1735576170070,2.6689,187.71,187.69,2.6691]
[1735576172668,5.8087,187.72,187.69,2.6691]
[1735576176873,12.09626395,187.73,187.7,2.6689]
[1735576177175,4.225,187.73,187.7,2.6689]
[1735576177670,1.5564,187.73,187.71,2.6687]
[1735576180378,4.225,187.73,187.7,2.6689]
[1735576184477,4.225,187.73,187.72,2.6687]
[1735576184478,1.5564,187.73,187.72,2.6687]
[1735576186380,1.5564,187.73,187.71,2.6688]
[1735576186578,1.5564,187.73,187.68,7.87126395]
[1735576186972,4.225,187.73,187.7,2.669]
[1735576189280,4.225,187.73,187.71,2.6688]
[1735576190282,1.5564,187.73,187.68,7.87126395]
[1735576190483,1.5564,187.73,187.72,2.6687]
[1735576193386,3.0862,187.75,187.74,2.6684]
[1735576195089,10.95746395,187.75,187.7,3.14]
[1735576195286,2.6685,187.74,187.7,3.14]
[1735576195587,2.6685,187.74,187.68,7.87126395]
[1735576197588,2.6685,187.74,187.71,2.6687]
[1735576197887,2.6685,187.74,187.68,7.87126395]
[1735576198087,2.6685,187.74,187.72,2.6687]
[1735576199592,7.87126395,187.75,187.72,2.6687]
[1735576199792,10.53966395,187.75,187.72,2.6687]
[1735576200990,7.87126395,187.75,187.72,2.6687]
[1735576201787,2.6684,187.75,187.72,2.6687]
[1735576201995,11.01126395,187.77,187.74,2.6685]
[1735576202386,11.01126395,187.77,187.67,1.5146]
[1735576202590,7.87126395,187.75,187.7,2.669]
[1735576203293,7.87126395,187.73,187.67,7.87126395]
[1735576203593,7.87126395,187.71,187.64,46.61646669]
[1735576203795,7.87126395,187.71,187.65,2.6698]
[1735576204097,2.6693,187.69,187.65,2.6698]
[1735576204689,2.6693,187.69,187.66,2.6697]
[1735576204887,3.14,187.72,187.65,7.87126395]
[1735576205285,7.87126395,187.71,187.65,7.87126395]
[1735576205693,2.6693,187.69,187.65,7.87126395]
[1735576205888,2.6693,187.69,187.62,1.5213]
[1735576206190,7.87126395,187.71,187.66,2.6695]
[1735576206498,2.6691,187.7,187.66,2.6695]
[1735576206994,2.6691,187.71,187.67,2.6695]
[1735576207792,2.669,187.7,187.66,2.6695]
[1735576207994,2.669,187.7,187.65,7.87126395]
[1735576208794,4.5571,187.8,187.69,7.87126395]
[1735576209001,4.5571,187.8,187.72,7.87126395]
[1735576209302,4.5571,187.8,187.74,7.87126395]
[1735576209499,4.5571,187.8,187.75,2.6682]
[1735576209500,7.2247,187.8,187.75,2.6682]
[1735576209697,4.5571,187.8,187.75,2.6682]
[1735576210003,7.87126395,187.77,187.67,3.1707]
[1735576210295,7.87126395,187.75,187.67,9.41126395]
[1735576210501,2.669,187.71,187.67,7.87126395]
[1735576210701,7.87126395,187.73,187.67,7.87126395]
[1735576211198,7.87126395,187.71,187.64,7.87126395]
[1735576213203,7.87126395,187.69,187.62,9.39256395]
[1735576213502,7.87126395,187.69,187.62,7.87126395]
[1735576213898,2.6695,187.67,187.63,2.6699]
[1735576214098,7.87126395,187.69,187.62,7.87126395]
[1735576214403,3.14,187.72,187.64,7.87126395]
[1735576214404,7.87126395,187.71,187.64,7.87126395]
[1735576214805,2.6691,187.7,187.66,2.6694]
[1735576215298,7.87126395,187.71,187.66,2.6694]
[1735576215504,2.669,187.7,187.66,2.6694]
[1735576218401,2.6689,187.71,187.67,2.6694]
[1735576220905,11.01126395,187.73,187.65,2.6696]
[1735576221205,11.01126395,187.73,187.64,7.87126395]
[1735576221405,2.6691,187.7,187.64,7.87126395]
[1735576221905,2.6688,187.72,187.68,2.6692]
[1735576222107,2.6688,187.72,187.68,10.54046395]
[1735576222503,2.6684,187.75,187.7,7.87126395]
[1735576222798,7.87126395,187.77,187.7,7.87126395]
[1735576223307,7.87126395,187.77,187.73,2.6685]
[1735576223308,10.53936395,187.77,187.73,2.6685]
[1735576224505,2.6681,187.77,187.74,2.6684]
[1735576224706,2.6681,187.77,187.72,7.87126395]
[1735576225302,2.6681,187.76,187.73,2.6685]
[1735576226104,2.6683,187.75,187.72,10.53996395]
[1735576226305,7.87126395,187.77,187.72,10.53996395]
[1735576227205,2.6682,187.76,187.73,2.6685]
[1735576228105,10.53936395,187.77,187.74,2.6684]
[1735576228409,7.87126395,187.77,187.72,7.87126395]